Cogmind - Beta 16 @@@ ROGUE MODE // 2025.12.23 @ 17:39:25 Player: TheGamingJasper Result: Destroyed by G-73 Enforcer with Heavy Laser Performance ------------- Evolutions (9) 4500 Regions Visited (18) 3600 Robots Destroyed (30) 150 Value Destroyed (803) 803 Prototype IDs (14) 280 Alien Tech Used (0) 0 Bonus (1200) 1200 TOTAL SCORE: 10533 Bonus ------- Pacifist 200 Met Warlord at Base 500 MAIN.C Attacked Warlord 500 Cogmind --------- Core Integrity 0/1600 Matter 300/300 Energy 100/100 System Corruption 5% Temperature Cool (9) Movement Core (50) Location -1/Access Parts ------- > --- POWER (2) -------- (None) > --- PROPULSION (6) --- (None) > --- UTILITY (15) ----- (None) > --- WEAPON (2) ------- (None) > --- INVENTORY (5) ---- Core Analyzer Peak State ------------ > --- POWER ------------ Light Nuclear Core Particle Reactor > --- PROPULSION ------- Xenon Bombardment Thruster Nuclear Pulse Thruster Nuclear Pulse Thruster Cooled Cesium-ion Thruster Field Propulsion Array > --- UTILITY ---------- Advanced Heat Sink Enhanced Optical Array Advanced Sensor Array Improved Signal Interpreter Improved Melee Analysis Suite Advanced Melee Analysis Suite Advanced Melee Analysis Suite Improved Transmission Jammer Improved Reaction Control System Improved Point Defense System Advanced Hacking Suite System Shield System Shield Improved System Shield Improved System Shield > --- WEAPON ----------- Power Maul Vibroblade > --- INVENTORY -------- Field Propulsion Array Advanced Reaction Control System Advanced Hacking Suite [Rating: 131] Favorites ----------- Power Light Nuclear Core Engine Light Angular Momentum Engine Power Core Light Nuclear Core Reactor Particle Reactor Propulsion Xenon Bombardment Thruster Wheel Wheel Flight Unit Xenon Bombardment Thruster Utility Advanced Melee Analysis Suite Device Improved Cooling System Storage Small Storage Unit Processor Advanced Melee Analysis Suite Hackware Improved System Shield Protection Utility Shielding Weapon Power Maul Ballistic Gun Light Assault Rifle Ballistic Cannon Light Cannon Impact Weapon Power Maul Slashing Weapon Vibroblade Special Melee Weapon Improved Datajack Build | -11 -10 -9 -9 -8 -7 -7 -7 -7 -7 -6 -5 -5 -5 -4 -4 -3 -2 -1 ------- Run | Yrd Mat Mat Min Mat Fac Was Fac Low Low Fac Fac Upp War Pro Fac Res Res Acc Slots Evolved 18 | . . 2 . 2 2 . . . . 2 2 . . . 2 2 2 2 Power 1 | . . . . . . . . . . 1 . . . . . . . . Propulsion 4 | . . 1 . 1 . . . . . 1 . . . . . . 1 . Utility 13 | . . 1 . 1 2 . . . . . 2 . . . 2 2 1 2 Weapon . | . . . . . . . . . . . . . . . . . . . Parts Attached 72 | 6 3 1 1 10 1 . 9 . . 15 1 . 1 . 7 5 5 7 Power 11 | 1 . . 1 1 . . 1 . . 4 . . . . 2 . . 1 Engine 4 | 1 . . 1 . . . . . . 2 . . . . . . . . Core 6 | . . . . 1 . . 1 . . 2 . . . . 2 . . . Reactor 1 | . . . . . . . . . . . . . . . . . . 1 Propulsion 22 | 2 . . . 5 . . 3 . . 5 . . . . 4 . 2 1 Treads . | . . . . . . . . . . . . . . . . . . . Leg . | . . . . . . . . . . . . . . . . . . . Wheel 2 | 2 . . . . . . . . . . . . . . . . . . Hover . | . . . . . . . . . . . . . . . . . . . Flight 20 | . . . . 5 . . 3 . . 5 . . . . 4 . 2 1 Utility 29 | 1 2 . . 2 1 . 3 . . 4 1 . 1 . 1 5 3 5 Device 13 | . . . . 1 1 . 2 . . 2 . . . . 1 4 1 1 Storage 1 | 1 . . . . . . . . . . . . . . . . . . Processor 5 | . . . . . . . 1 . . 2 1 . . . . . 1 . Hackware 7 | . . . . . . . . . . . . . 1 . . 1 1 4 Protection 3 | . 2 . . 1 . . . . . . . . . . . . . . Artifact . | . . . . . . . . . . . . . . . . . . . Weapon 10 | 2 1 1 . 2 . . 2 . . 2 . . . . . . . . Energy Gun . | . . . . . . . . . . . . . . . . . . . Energy Cannon . | . . . . . . . . . . . . . . . . . . . Ballistic Gun 3 | 2 . 1 . . . . . . . . . . . . . . . . Ballistic Cannon 1 | . 1 . . . . . . . . . . . . . . . . . Launcher . | . . . . . . . . . . . . . . . . . . . Special Weapon . | . . . . . . . . . . . . . . . . . . . Impact Weapon 2 | . . . . . . . 1 . . 1 . . . . . . . . Slashing Weapon 3 | . . . . 2 . . . . . 1 . . . . . . . . Piercing Weapon . | . . . . . . . . . . . . . . . . . . . Special Melee Weapon 1 | . . . . . . . 1 . . . . . . . . . . . Unidentified Prototypes 1 | . . . . . . . . . . 1 . . . . . . . . Parts Lost 36 | . . . . 3 1 2 1 . . 6 . 1 . . 12 . . 10 Power 6 | . . . . . . . . . . 2 . . . . 2 . . 2 Propulsion 17 | . . . . 2 1 1 1 . . 3 . . . . 5 . . 4 Utility 13 | . . . . 1 . 1 . . . 1 . 1 . . 5 . . 4 Weapon . | . . . . . . . . . . . . . . . . . . . Highest Loss Streak 7 | . . . . 2 1 2 1 . . 5 . 1 . . 4 . . 7 To Critical Strikes . | . . . . . . . . . . . . . . . . . . . Average Backups 4 | . 2 5 7 5 4 5 4 5 5 4 4 5 5 5 3 4 4 3 Power . | . 1 1 1 1 1 1 . 1 1 . 1 1 1 1 . . . . Propulsion . | . . 2 1 . . . . . . . 1 1 1 1 1 1 . . Utility 1 | . . 1 1 1 1 2 1 1 1 1 1 2 2 2 1 1 2 1 Weapon 1 | . . 1 3 2 1 1 2 3 3 2 1 1 1 1 1 1 1 . Tool/Special . | . . . . . . . . . . . . . . . . . . . Unused Backups 11 | . . . . 2 3 . 1 1 . 2 . . . . . . 1 1 Power 3 | . . . . . 2 . 1 . . . . . . . . . . . Propulsion 3 | . . . . 1 . . . . . 1 . . . . . . 1 . Utility 3 | . . . . 1 . . . 1 . . . . . . . . . 1 Weapon 2 | . . . . . 1 . . . . 1 . . . . . . . . Tool/Special . | . . . . . . . . . . . . . . . . . . . Average Slot Usage (%) 85 | . 88 66 83 74 75 69 76 100 100 90 99 98 98 100 86 72 80 82 Engine 2 | . 14 3 8 5 . . . . . 2 5 5 5 5 3 . . . Core 5 | . . . . 3 7 7 7 7 7 6 5 5 5 5 5 9 8 6 Wheel 2 | . 22 11 19 6 . . . . . . . . . . . . . . Flight 21 | . . . . 18 29 23 26 30 30 27 29 29 29 29 24 19 18 17 Device 14 | . . . . . 7 7 15 30 30 16 19 17 17 17 15 14 18 16 Storage 1 | . 10 11 11 4 . . . . . . . . . . . . . . Processor 14 | . . . . . . . 3 7 7 15 20 23 23 23 21 19 20 17 Hackware 4 | . . . . . . . . . . . . . 4 5 4 2 4 16 Protection 5 | . 14 22 22 16 15 15 7 7 7 6 5 3 . . . . . . Ballistic Gun 1 | . 16 8 11 4 . . . . . . . . . . . . . . Ballistic Cannon 1 | . 9 11 11 4 . . . . . . . . . . . . . . Impact Weapon 3 | . . . . . . . 3 7 7 6 5 5 5 5 4 2 4 3 Slashing Weapon 5 | . . . . 9 15 15 10 7 7 6 5 5 5 5 5 4 4 3 Peak Build Rating 131 | 6 7 9 11 19 23 19 37 37 37 68 77 77 80 80 87 93 114 131 Average Rating 65 | 4 6 7 10 13 19 17 28 37 37 49 76 76 79 80 81 85 102 113 On Entrance 44 | . 6 7 9 11 19 19 13 37 37 37 68 77 76 80 80 66 93 114 Avg Prop Armor Cover (%) . | . . . . . . . . . . . . . . . . . . . Naked Turns 53 | . . . . . . . . . . . . . . . . . . 53 Heaviest Build 38 | 12 15 20 22 22 15 15 20 20 20 27 32 31 30 30 32 27 28 38 Greatest Support 48 | 26 26 10 26 26 21 21 23 21 21 39 32 32 32 32 35 33 40 48 Greatest Overweight (x) 4 | . 1 1 1 4 . . . . . 1 . . . . . . . . Average Overweight (x) . | . . 1 . . . . . . . . . . . . . . . . Largest Inventory Capacity 8 | 8 8 8 8 8 5 5 5 5 5 5 5 5 5 5 5 5 5 5 Average Capacity 5 | 6 7 8 8 6 5 5 5 5 5 5 5 5 5 5 5 5 5 5 Most Carried 8 | 2 5 8 8 8 5 5 5 5 5 5 5 5 5 5 5 5 5 5 Average Carried 4 | . 3 5 7 5 4 5 4 4 5 4 4 5 4 5 3 4 4 3 Final Capacity 8 | 8 5 8 8 5 5 5 5 5 5 5 5 5 5 5 5 5 5 5 Final Carried 8 | 1 5 8 7 5 5 5 5 5 5 5 5 5 5 5 4 5 5 1 Class Distribution -------------------- 32% | Sprinter 15% | Mutant 11% | Scientist-Sprinter 11% | Hacker-Ninja 11% | Ninja 8% | Scavenger-Sprinter 4% | Scavenger-Ninja Dominant Class ---------------- Mutant | -10/Materials Mutant | -9/Materials Mutant | -9/Mines Scavenger-Sprinter | -8/Materials Scavenger-Sprinter | -7/Factory Scavenger-Mutant | -7/Waste Scientist-Sprinter | -7/Factory Scientist-Sprinter | -7/Lower Caves Scientist-Sprinter | -7/Lower Caves Sprinter | -6/Factory Sprinter | -5/Factory Sprinter | -5/Upper Caves Sprinter | -5/Warlord Sprinter | -4/Proximity Caves Sprinter | -4/Factory Ninja | -3/Research Ninja | -2/Research Hacker-Ninja | -1/Access Resources | -11 -10 -9 -9 -8 -7 -7 -7 -7 -7 -6 -5 -5 -5 -4 -4 -3 -2 -1 ----------- Run | Yrd Mat Mat Min Mat Fac Was Fac Low Low Fac Fac Upp War Pro Fac Res Res Acc Matter Collected 1102 | 214 1 . 60 199 99 . 131 30 . 89 . . 84 . 20 . 140 35 Remotely . | . . . . . . . . . . . . . . . . . . . Salvage Created 879 | . . 94 . 245 99 . 101 . . 231 . . . . 109 . . . Parts 56 | . . 8 . 14 4 . 7 . . 16 . . . . 7 . . . Haulers Intercepted 2 | . . . . 1 1 . . . . . . . . . . . . . Recyclers Shooed . | . . . . . . . . . . . . . . . . . . . Parts Field Recycled . | . . . . . . . . . . . . . . . . . . . Retrieved Matter . | . . . . . . . . . . . . . . . . . . . Parts Self-Destructed 9 | . . . . . . . . 9 . . . . . . . . . . Prevented . | . . . . . . . . . . . . . . . . . . . Parts Restored . | . . . . . . . . . . . . . . . . . . . Kills | -11 -10 -9 -9 -8 -7 -7 -7 -7 -7 -6 -5 -5 -5 -4 -4 -3 -2 -1 ------- Run | Yrd Mat Mat Min Mat Fac Was Fac Low Low Fac Fac Upp War Pro Fac Res Res Acc Combat Hostiles Destroyed 28 | . . 3 . 10 1 . 4 . . 6 . . . . 4 . . . Melee 20 | . . . . 5 1 . 4 . . 6 . . . . 4 . . . Guns 4 | . . . . 4 . . . . . . . . . . . . . . Cannons 4 | . . 3 . 1 . . . . . . . . . . . . . . Classes Destroyed 7 | . . 2 . 3 1 . . . . 1 . . . . . . . . Hauler 2 | . . . . 1 1 . . . . . . . . . . . . . Swarmer 19 | . . . . 8 . . 4 . . 3 . . . . 4 . . . Grunt 5 | . . 2 . 1 . . . . . 2 . . . . . . . . Duelist 1 | . . 1 . . . . . . . . . . . . . . . . Sentry 1 | . . . . 1 . . . . . . . . . . . . . . Hunter 1 | . . . . . 1 . . . . . . . . . . . . . Programmer 1 | . . . . . . . . . . 1 . . . . . . . . Best Kill Streak 5 | . . 3 . 5 2 . 3 . . 3 . . . . 4 . . . Combat Bots Only 5 | . . 3 . 5 1 . 3 . . 3 . . . . 4 . . . Max Kills in Single Turn 2 | . . 1 . 2 1 . 1 . . 1 . . . . 1 . . . Gunslinging . | . . . . . . . . . . . . . . . . . . . Exploded . | . . . . . . . . . . . . . . . . . . . Melee 1 | . . . . 1 1 . 1 . . 1 . . . . 1 . . . Uniques/NPCs Destroyed . | . . . . . . . . . . . . . . . . . . . Combat | -11 -10 -9 -9 -8 -7 -7 -7 -7 -7 -6 -5 -5 -5 -4 -4 -3 -2 -1 -------- Run | Yrd Mat Mat Min Mat Fac Was Fac Low Low Fac Fac Upp War Pro Fac Res Res Acc Hostile Shots Fired 544 | . . 11 . 60 4 1 19 20 . 36 4 5 4 15 89 . 3 273 Missed 274 | . . 3 . 19 1 . 8 11 . 18 2 2 3 13 48 . 2 144 Hits 270 | . . 8 . 41 3 1 11 9 . 18 2 3 1 2 41 . 1 129 Melee 9 | . . 7 . . . 1 . . . 1 . . . . . . . . Projectile 261 | . . 1 . 41 3 . 11 9 . 17 2 3 1 2 41 . 1 129 Critical Strikes 7 | . . 2 . 1 . 1 . . . . . . . . 2 . . 1 Part Disruptions 1 | . . . . . . . . . . . . . . . 1 . . . Damage Taken 4612 | . . 228 . 436 47 46 175 134 . 349 31 50 18 22 693 . 25 2358 Core 2141 | . . 33 . 62 10 28 125 16 . 79 . 28 . . 148 . . 1612 Absorbed by Shields 246 | . . . . . . . . . . . 11 18 7 8 109 . . 93 Redirected to Shielding 56 | . . 10 . 5 . . . 18 . 16 . 7 . . . . . . Regen/Repaired (Parts) 17 | . . . . . . . . . . . . . 17 . . . . . Core Remaining (%) 92 | 100 100 . 91 88 . . . . 74 90 . . . 97 87 100 100 . Volleys Fired 28 | . 3 10 . 15 . . . . . . . . . . . . . . Largest 2 | . 2 2 . 2 . . . . . . . . . . . . . . Hottest 53 | . 50 50 . 53 . . . . . . . . . . . . . . Shots Fired 53 | . 6 17 . 30 . . . . . . . . . . . . . . Gun 26 | . 4 7 . 15 . . . . . . . . . . . . . . Cannon 27 | . 2 10 . 15 . . . . . . . . . . . . . . Launcher . | . . . . . . . . . . . . . . . . . . . Special . | . . . . . . . . . . . . . . . . . . . Kinetic 53 | . 6 17 . 30 . . . . . . . . . . . . . . Thermal . | . . . . . . . . . . . . . . . . . . . Explosive . | . . . . . . . . . . . . . . . . . . . Electromagnetic . | . . . . . . . . . . . . . . . . . . . Robot Hit Streak 8 | . 2 7 . 8 . . . . . . . . . . . . . . Robot Miss Streak 4 | . 1 1 . 4 . . . . . . . . . . . . . . Penetration Max . | . . . . . . . . . . . . . . . . . . . Secondary Targets . | . . . . . . . . . . . . . . . . . . . Shots Hit Robots 78 | . 4 14 . 24 3 . 8 . . 19 . . . . 6 . . . Core Hits 34 | . 1 5 . 10 2 . 3 . . 7 . . . . 4 . . 2 Critical Kills 1 | . . . . . . . . . . 1 . . . . . . . . Critical Parts Destroyed 1 | . 1 . . . . . . . . . . . . . . . . . Critical Strikes 5 | . 1 . . 1 1 . . . . 2 . . . . . . . . Destroy 1 | . 1 . . . . . . . . . . . . . . . . . Smash 1 | . . . . . . . . . . 1 . . . . . . . . Sever 3 | . . . . 1 1 . . . . 1 . . . . . . . . Melee Attacks 64 | . . . . 16 4 . 11 2 . 24 . . . . 7 . . . Impact 10 | . . . . . . . 2 2 . 5 . . . . 1 . . . Slashing 54 | . . . . 16 4 . 9 . . 19 . . . . 6 . . . Piercing . | . . . . . . . . . . . . . . . . . . . Sneak Attacks 6 | . . . . 1 2 . 1 . . 2 . . . . . . . . Combat Hostiles 4 | . . . . . 1 . 1 . . 2 . . . . . . . . Follow-up Attacks 3 | . . . . . . . . . . 3 . . . . . . . . Damage Inflicted 2764 | . 46 181 . 609 178 . 312 . . 1048 . . . . 329 . . 61 Guns 192 | . 15 43 . 134 . . . . . . . . . . . . . . Cannons 279 | . 31 138 . 110 . . . . . . . . . . . . . . Explosions . | . . . . . . . . . . . . . . . . . . . Melee 2232 | . . . . 365 178 . 312 . . 1048 . . . . 329 . . . Ramming 61 | . . . . . . . . . . . . . . . . . . 61 Kinetic 471 | . 46 181 . 244 . . . . . . . . . . . . . . Thermal . | . . . . . . . . . . . . . . . . . . . Explosive . | . . . . . . . . . . . . . . . . . . . Electromagnetic . | . . . . . . . . . . . . . . . . . . . Impact 203 | . . . . . . . 48 . . 155 . . . . . . . . Slashing 2029 | . . . . 365 178 . 264 . . 893 . . . . 329 . . . Piercing . | . . . . . . . . . . . . . . . . . . . Highest Corruption 10 | . . . . . . 10 10 10 10 2 . . . . 1 . 1 5 Average Corruption 5 | . . . . . . 10 10 10 10 1 . . . . 1 . 1 1 Corruption Purged . | . . . . . . . . . . . . . . . . . . . Corruption Blocked . | . . . . . . . . . . . . . . . . . . . Effects 13 | . . . . . . 1 6 4 . 2 . . . . . . . . Message Errors 5 | . . . . . . 1 2 2 . . . . . . . . . . Matter Fused 3 | . . . . . . . 2 . . 1 . . . . . . . . Heat Flow Errors 3 | . . . . . . . 1 1 . 1 . . . . . . . . Alerts 1 | . . . . . . . 1 . . . . . . . . . . . Misdirections 1 | . . . . . . . . 1 . . . . . . . . . . Overload Shots . | . . . . . . . . . . . . . . . . . . . Overflow Damage 281 | . . . . 33 . . 42 . . 183 . . . . 23 . . . Projectiles . | . . . . . . . . . . . . . . . . . . . Explosions . | . . . . . . . . . . . . . . . . . . . Melee 281 | . . . . 33 . . 42 . . 183 . . . . 23 . . . Knockbacks 3 | . 1 . . 1 . . . . . 1 . . . . . . . . Impact 1 | . . . . . . . . . . 1 . . . . . . . . Kinetic 2 | . 1 . . 1 . . . . . . . . . . . . . . Secondary . | . . . . . . . . . . . . . . . . . . . Self-Inflicted Damage 27 | . . . . . . . . . . . . . . . . . . 27 Shots . | . . . . . . . . . . . . . . . . . . . Rammed 20 | . . . . . . . . . . . . . . . . . . 20 Targets Rammed 20 | . . . . . . . . . . . . . . . . . . 20 Kicked . | . . . . . . . . . . . . . . . . . . . Crushed . | . . . . . . . . . . . . . . . . . . . Highest Temperature 234 | . 10 28 . 53 . . 234 141 . 152 . . . . . . . 1 Average Temperature 35 | . 7 9 . 15 . . 136 94 . 81 . . . . . . . 1 Received Heat Transfer 449 | . . 6 . 117 . . . . . 33 15 18 . . 20 . . 240 Siege Activations . | . . . . . . . . . . . . . . . . . . . Martial Activations . | . . . . . . . . . . . . . . . . . . . Shielding Activations . | . . . . . . . . . . . . . . . . . . . Robots Disrupted . | . . . . . . . . . . . . . . . . . . . Combat Hostiles . | . . . . . . . . . . . . . . . . . . . Robots Corrupted . | . . . . . . . . . . . . . . . . . . . Combat Hostiles . | . . . . . . . . . . . . . . . . . . . Parts Fried . | . . . . . . . . . . . . . . . . . . . Impact Corruptions 1 | . . . . . . . 1 . . . . . . . . . . . Robots Melted . | . . . . . . . . . . . . . . . . . . . Combat Hostiles . | . . . . . . . . . . . . . . . . . . . Parts Melted . | . . . . . . . . . . . . . . . . . . . Heat Transferred . | . . . . . . . . . . . . . . . . . . . Parts Sabotaged . | . . . . . . . . . . . . . . . . . . . Parts Stolen . | . . . . . . . . . . . . . . . . . . . Parts Stripped . | . . . . . . . . . . . . . . . . . . . Power Chain Reactions . | . . . . . . . . . . . . . . . . . . . Alert | -11 -10 -9 -9 -8 -7 -7 -7 -7 -7 -6 -5 -5 -5 -4 -4 -3 -2 -1 ------- Run | Yrd Mat Mat Min Mat Fac Was Fac Low Low Fac Fac Upp War Pro Fac Res Res Acc Maximum Alert Level 2 | . . . . . . . . . . . . . . . . . . 2 Low Security (%) 95 | 100 100 100 100 100 100 100 100 . . 100 100 . . . 100 100 100 75 Level 1 . | . . . . . . . . . . . . . . . . . . 3 Level 2 3 | . . . . . . . . . . . . . . . . . . 20 Level 3 . | . . . . . . . . . . . . . . . . . . . Level 4 . | . . . . . . . . . . . . . . . . . . . Level 5 . | . . . . . . . . . . . . . . . . . . . High Security . | . . . . . . . . . . . . . . . . . . . Max Security . | . . . . . . . . . . . . . . . . . . . Peak Influence 638 | . . 70 3 183 82 25 97 . . 167 106 . . . 145 47 58 638 Initial 81 | . . . 3 . 73 25 . . . . 81 . . . 75 47 12 20 Average 53 | . . 27 1 82 59 19 59 . . 34 81 . . . 59 34 7 124 Influence Increases 2578 | . . 70 . 283 79 . 137 . . 326 45 . 75 180 360 15 90 918 Destroy 0b10 Robot/C 560 | . . 60 . 200 20 . 80 . . 120 . . . . 80 . . . Destroy 0b10 Robot/NC 10 | . . . . 5 5 . . . . . . . . . . . . . Destroy Leader 94 | . . 10 . 32 12 . 10 . . 20 . . . . 10 . . . Successful Hack 38 | . . . . . 12 . 2 . . 6 . . . . . . . 18 Destroy Structure 1 | . . . . 1 . . . . . . . . . . . . . . Partial Spotted 240 | . . . . . 30 . 15 . . 60 . . . . 60 15 45 15 Lose Combat Pursuer 1635 | . . . . 45 . . 30 . . 120 45 . 75 180 210 . 45 885 Influence Decreases 1948 | . . 60 10 120 170 72 70 67 . 159 126 52 58 111 390 83 78 322 Entered New Map 485 | . . . 7 . 90 47 . 26 . . 86 32 34 51 45 43 10 14 Time Decay 958 | . . 60 3 100 70 10 60 41 . 119 40 10 24 60 135 40 68 118 Search Patrol Dispatched 100 | . . . . . . . . . . . . . . . . . . 100 Lost Part 315 | . . . . 20 10 15 10 . . 40 . 10 . . 120 . . 90 Purge Threat 90 | . . . . . . . . . . . . . . . 90 . . . Squads Dispatched 15 | . 1 2 . . 1 . 1 . . 2 1 . . . 3 . 1 3 Investigation 4 | . . 2 . . 1 . . . . . 1 . . . . . . . Extermination 4 | . . . . . . . . . . 2 . . . . 1 . . 1 Reinforcement 7 | . 1 . . . . . 1 . . . . . . . 2 . 1 2 Assault . | . . . . . . . . . . . . . . . . . . . Garrison . | . . . . . . . . . . . . . . . . . . . Intercept . | . . . . . . . . . . . . . . . . . . . Searches Triggered 1 | . . . . . . . . . . . . . . . . . . 1 Construction Impeded . | . . . . . . . . . . . . . . . . . . . Haulers Reinforced 1 | . . . . . . . . . . . . . . . . . 1 . Active Scanning Responses . | . . . . . . . . . . . . . . . . . . . Cargo Convoy Interrupts . | . . . . . . . . . . . . . . . . . . . Stealth | -11 -10 -9 -9 -8 -7 -7 -7 -7 -7 -6 -5 -5 -5 -4 -4 -3 -2 -1 --------- Run | Yrd Mat Mat Min Mat Fac Was Fac Low Low Fac Fac Upp War Pro Fac Res Res Acc Distress Signals 11 | . . . . 1 . . . . . 1 . . . . 2 . 4 3 Communications Jammed 6 | . . . . . . . . . . . . . . . . . . 6 Distress Signals 6 | . . . . . . . . . . . . . . . . . . 6 Times Spotted 209 | . 3 3 . 13 1 5 6 8 . 18 6 7 12 12 24 . 14 77 Peak Tracking Total 22 | . 3 3 . 6 1 5 4 7 . 7 3 7 7 7 8 . 8 22 Tactical Retreats 35 | . . . . 1 . . 2 4 . 4 1 . 2 3 7 . 1 10 ECM-based Alert Blocks 6 | . . . . . . . . 3 . 3 . . . . . . . . Traps | -11 -10 -9 -9 -8 -7 -7 -7 -7 -7 -6 -5 -5 -5 -4 -4 -3 -2 -1 ------- Run | Yrd Mat Mat Min Mat Fac Was Fac Low Low Fac Fac Upp War Pro Fac Res Res Acc Traps Triggered 10 | . 1 . . . 2 . . . . 1 1 . . . 2 . . 3 Indirectly . | . . . . . . . . . . . . . . . . . . . Trap Hack Attempts . | . . . . . . . . . . . . . . . . . . . Triggered . | . . . . . . . . . . . . . . . . . . . Disarmed . | . . . . . . . . . . . . . . . . . . . Reprogrammed . | . . . . . . . . . . . . . . . . . . . Reused . | . . . . . . . . . . . . . . . . . . . Traps Extracted . | . . . . . . . . . . . . . . . . . . . Installed . | . . . . . . . . . . . . . . . . . . . Triggered . | . . . . . . . . . . . . . . . . . . . Machines | -11 -10 -9 -9 -8 -7 -7 -7 -7 -7 -6 -5 -5 -5 -4 -4 -3 -2 -1 ---------- Run | Yrd Mat Mat Min Mat Fac Was Fac Low Low Fac Fac Upp War Pro Fac Res Res Acc Machines Disabled . | . . . . . . . . . . . . . . . . . . . Max in Single Turn . | . . . . . . . . . . . . . . . . . . . Machines Repaired . | . . . . . . . . . . . . . . . . . . . Machines Dismantled . | . . . . . . . . . . . . . . . . . . . Machines Sabotaged . | . . . . . . . . . . . . . . . . . . . Overloaded Fab Kills . | . . . . . . . . . . . . . . . . . . . Hacking | -11 -10 -9 -9 -8 -7 -7 -7 -7 -7 -6 -5 -5 -5 -4 -4 -3 -2 -1 --------- Run | Yrd Mat Mat Min Mat Fac Was Fac Low Low Fac Fac Upp War Pro Fac Res Res Acc Machines Accessed 18 | . . 2 . . 2 . 1 . . 1 . . 6 . 2 . 2 2 Terminals 6 | . . 1 . . 1 . . . . . . . . . 2 . 1 1 Fabricators 1 | . . . . . . . . . . 1 . . . . . . . . Repair Stations . | . . . . . . . . . . . . . . . . . . . Recycling Units 1 | . . 1 . . . . . . . . . . . . . . . . Scanalyzers 4 | . . . . . 1 . 1 . . . . . . . . . 1 1 Garrison Access . | . . . . . . . . . . . . . . . . . . . Total Hacks 56 | . . 6 . . 4 . 4 . . 2 . . 18 . 3 . 5 14 Successful 29 | . . 2 . . 1 . 3 . . 1 . . 18 . 1 . . 3 Failed 27 | . . 4 . . 3 . 1 . . 1 . . . . 2 . 5 11 Catastrophic 8 | . . 1 . . 2 . . . . . . . . . 2 . 1 2 Database Lockouts . | . . . . . . . . . . . . . . . . . . . Manual 10 | . . . . . . . . . . . . . 1 . . . 3 6 Terminals 16 | . . 3 . . 1 . . . . . . . . . 3 . 3 6 Fabricators 2 | . . . . . . . . . . 2 . . . . . . . . Repair Stations . | . . . . . . . . . . . . . . . . . . . Recycling Units 3 | . . 3 . . . . . . . . . . . . . . . . Scanalyzers 17 | . . . . . 3 . 4 . . . . . . . . . 2 8 Garrison Access . | . . . . . . . . . . . . . . . . . . . Terminal Hacks 19 | . . . . . . . . . . . . . 18 . 1 . . . Record 10 | . . . . . . . . . . . . . 10 . . . . . Prototype ID Bank 6 | . . . . . . . . . . . . . 6 . . . . . Open Door 2 | . . . . . . . . . . . . . 2 . . . . . Unreport Threat 1 | . . . . . . . . . . . . . . . 1 . . . Fabricator Hacks 1 | . . . . . . . . . . 1 . . . . . . . . Build 1 | . . . . . . . . . . 1 . . . . . . . . Repair Station Hacks . | . . . . . . . . . . . . . . . . . . . Recycling Unit Hacks 2 | . . 2 . . . . . . . . . . . . . . . . Process 1 | . . 1 . . . . . . . . . . . . . . . . Report Inventory 1 | . . 1 . . . . . . . . . . . . . . . . Scanalyzer 7 | . . . . . 1 . 3 . . . . . . . . . . 3 Retrieve Study 7 | . . . . . 1 . 3 . . . . . . . . . . 3 Garrison Access Hacks . | . . . . . . . . . . . . . . . . . . . Unauthorized Hacks . | . . . . . . . . . . . . . . . . . . . Terminals . | . . . . . . . . . . . . . . . . . . . Fabricators . | . . . . . . . . . . . . . . . . . . . Repair Stations . | . . . . . . . . . . . . . . . . . . . Recycling Units . | . . . . . . . . . . . . . . . . . . . Scanalyzers . | . . . . . . . . . . . . . . . . . . . Garrison Access . | . . . . . . . . . . . . . . . . . . . Data Cores Recovered . | . . . . . . . . . . . . . . . . . . . Used . | . . . . . . . . . . . . . . . . . . . Hacking Detections 10 | . . 2 . . 2 . . . . . . . . . 2 . 2 2 Full Trace Events 2 | . . 2 . . . . . . . . . . . . . . . . Feedback Events . | . . . . . . . . . . . . . . . . . . . Feedback Blocked . | . . . . . . . . . . . . . . . . . . . Robot Schematics Acquired . | . . . . . . . . . . . . . . . . . . . Robots Built . | . . . . . . . . . . . . . . . . . . . Authchips . | . . . . . . . . . . . . . . . . . . . Time . | . . . . . . . . . . . . . . . . . . . Total Robot Build Rating . | . . . . . . . . . . . . . . . . . . . Part Schematics Acquired . | . . . . . . . . . . . . . . . . . . . Parts Built 1 | . . . . . . . . . . 1 . . . . . . . . Authchips . | . . . . . . . . . . . . . . . . . . . Time 187 | . . . . . . . . . . 187 . . . . . . . . Total Part Build Rating 7 | . . . . . . . . . . 7 . . . . . . . . Part Studies Acquired 7 | . . . . . 1 . 3 . . . . . . . . . . 3 Parts Repaired . | . . . . . . . . . . . . . . . . . . . Time . | . . . . . . . . . . . . . . . . . . . Parts Recycled . | . . . . . . . . . . . . . . . . . . . Recycled Matter 16 | . . 16 . . . . . . . . . . . . . . . . Retrieved Matter . | . . . . . . . . . . . . . . . . . . . Retrieved Components . | . . . . . . . . . . . . . . . . . . . Parts Scanalyzed . | . . . . . . . . . . . . . . . . . . . Part Schematics Acquired . | . . . . . . . . . . . . . . . . . . . Parts Damaged . | . . . . . . . . . . . . . . . . . . . Bothacking | -11 -10 -9 -9 -8 -7 -7 -7 -7 -7 -6 -5 -5 -5 -4 -4 -3 -2 -1 ------------ Run | Yrd Mat Mat Min Mat Fac Was Fac Low Low Fac Fac Upp War Pro Fac Res Res Acc Used RIF Installer . | . . . . . . . . . . . . . . . . . . . Robots Hacked . | . . . . . . . . . . . . . . . . . . . Non-combat . | . . . . . . . . . . . . . . . . . . . Combat . | . . . . . . . . . . . . . . . . . . . Robot Hacks Applied . | . . . . . . . . . . . . . . . . . . . Relay Couplers Released . | . . . . . . . . . . . . . . . . . . . Fabnet Peak Effective % . | . . . . . . . . . . . . . . . . . . . Robots Rewired . | . . . . . . . . . . . . . . . . . . . Allies Hacked . | . . . . . . . . . . . . . . . . . . . Hacks Repelled . | . . . . . . . . . . . . . . . . . . . Allies | -11 -10 -9 -9 -8 -7 -7 -7 -7 -7 -6 -5 -5 -5 -4 -4 -3 -2 -1 -------- Run | Yrd Mat Mat Min Mat Fac Was Fac Low Low Fac Fac Upp War Pro Fac Res Res Acc Total Allies 1 | . . . . . . 1 . . . . . . . . . . . . Largest Group 1 | . . . . . . 1 . . . . . . . . . . . . Highest-Rated Group 31 | . . . . . . 31 . . . . . . . . . . . . Highest-Rated Ally 31 | . . . . . . 31 . . . . . . . . . . . . Total Orders . | . . . . . . . . . . . . . . . . . . . Ally Attacks . | . . . . . . . . . . . . . . . . . . . Total Damage . | . . . . . . . . . . . . . . . . . . . Kills . | . . . . . . . . . . . . . . . . . . . Allies Corrupted . | . . . . . . . . . . . . . . . . . . . Allies Melted 2 | . . . . . . . . . . . . . 2 . . . . . Intel | -11 -10 -9 -9 -8 -7 -7 -7 -7 -7 -6 -5 -5 -5 -4 -4 -3 -2 -1 ------- Run | Yrd Mat Mat Min Mat Fac Was Fac Low Low Fac Fac Upp War Pro Fac Res Res Acc Active Infowar (turns) 2670 | . . . . . . . 36 169 8 232 44 24 469 169 306 94 570 549 Optics 2225 | . . . . . . . . . . . 44 24 469 169 306 94 570 549 Sensors 1175 | . . . . . . . . . . . . . . . . 56 570 549 Jamming 117 | . . . . . . . . . . . . . . . 1 . . 116 ECM 445 | . . . . . . . 36 169 8 232 . . . . . . . . Robot Analysis Total . | . . . . . . . . . . . . . . . . . . . Derelict Logs Recovered 4 | . . . 1 . . . . 1 . . . 1 . 1 . . . . Drone Launches . | . . . . . . . . . . . . . . . . . . . Drone Recoveries . | . . . . . . . . . . . . . . . . . . . Exploration | -11 -10 -9 -9 -8 -7 -7 -7 -7 -7 -6 -5 -5 -5 -4 -4 -3 -2 -1 ------------- Run | Yrd Mat Mat Min Mat Fac Was Fac Low Low Fac Fac Upp War Pro Fac Res Res Acc Turns Passed 4081 | 55 141 193 47 281 142 27 157 169 8 512 87 24 469 169 334 94 570 602 Spaces Moved 7372 | 49 111 139 49 251 328 75 341 505 27 725 303 88 1196 400 753 289 848 895 Core 71 | 4 . . . . . . . . . . . . . . . . . 67 Treads . | . . . . . . . . . . . . . . . . . . . Legs . | . . . . . . . . . . . . . . . . . . . Wheels 418 | 45 111 139 49 74 . . . . . . . . . . . . . . Hover . | . . . . . . . . . . . . . . . . . . . Flight 6883 | . . . . 177 328 75 341 505 27 725 303 88 1196 400 753 289 848 828 Fastest Speed 25 | 50 90 95 90 31 31 34 28 28 28 25 27 27 27 27 27 28 26 27 Average Speed 32 | 86 92 95 90 52 31 34 29 28 28 28 27 27 27 27 27 28 27 30 Slowest Speed 360 | 90 95 95 95 360 34 40 37 28 28 114 27 27 27 27 32 28 28 50 Overloaded Moves . | . . . . . . . . . . . . . . . . . . . Propulsion Burnouts . | . . . . . . . . . . . . . . . . . . . Robots Hopped 68 | . . . . 6 1 . 2 1 . 10 10 . 1 2 8 3 7 17 Potential Cave-ins . | . . . . . . . . . . . . . . . . . . . Cave-ins Triggered . | . . . . . . . . . . . . . . . . . . . Exploration Rate (%) 28 | 3 24 16 13 29 14 71 7 66 7 19 13 15 93 67 27 9 25 28 Regions Visited 18 Branch Regions 6 Pre-discovered Areas . | . . . . . . . . . . . . . . . . . . . Known Exits Taken 11 | . . . . . . . 1 1 1 1 1 1 1 1 1 1 1 . Unknown Exits Taken 5 | 1 1 1 1 1 . . . . . . . . . . . . . . Scrap Searched 5 | . . . 1 . . . . 3 1 . . . . . . . . . Spaces Dug . | . . . . . . . . . . . . . . . . . . . Terrain Destroyed . | . . . . . . . . . . . . . . . . . . . Melee . | . . . . . . . . . . . . . . . . . . . Projectile . | . . . . . . . . . . . . . . . . . . . AOE . | . . . . . . . . . . . . . . . . . . . Terrain Rammed . | . . . . . . . . . . . . . . . . . . . Walls Destroyed . | . . . . . . . . . . . . . . . . . . . Machines Disabled . | . . . . . . . . . . . . . . . . . . . Actions | -11 -10 -9 -9 -8 -7 -7 -7 -7 -7 -6 -5 -5 -5 -4 -4 -3 -2 -1 --------- Run | Yrd Mat Mat Min Mat Fac Was Fac Low Low Fac Fac Upp War Pro Fac Res Res Acc Total 8865 | 61 143 184 51 344 363 75 378 527 26 988 297 87 1340 458 861 298 1173 1211 Wait 1266 | . 18 29 . 50 24 . 10 20 . 222 . . 143 61 77 . 324 288 Move 7226 | 48 110 138 48 238 326 74 336 502 26 705 284 87 1193 396 737 282 835 861 Hop 61 | . . . . 6 1 . 2 1 . 9 8 . 1 1 7 3 5 17 Pick Up 67 | 7 7 5 1 4 3 . 8 1 . 9 1 . 1 . 9 6 2 3 Fast Attach 23 | . . . . 6 . 1 2 . . 6 1 . 1 . . . 3 3 Attach 49 | 6 3 2 2 3 1 . 7 . . 3 2 . . . 9 6 1 4 Detach 3 | . . . . . 1 . . . . . 1 . . . . 1 . . Swap 14 | . 2 . . 1 . . 1 . . 7 . . . . 1 . 2 . Drop 27 | . . . . 7 3 . 2 1 . 8 . . 1 . 1 . 1 3 Fire 28 | . 3 10 . 15 . . . . . . . . . . . . . . Melee 55 | . . . . 14 4 . 10 2 . 19 . . . . 6 . . . Ram 20 | . . . . . . . . . . . . . . . . . . 20 Kick . | . . . . . . . . . . . . . . . . . . . Crush . | . . . . . . . . . . . . . . . . . . . Escape Stasis 26 | . . . . . . . . . . . . . . . 14 . . 12 Rewire . | . . . . . . . . . . . . . . . . . . . Trap . | . . . . . . . . . . . . . . . . . . . Miscellaneous . | . . . . . . . . . . . . . . . . . . . Route ------- -11/Scrapyard -10/Materials -9/Materials -9/Mines -8/Materials -7/Factory -7/Waste -7/Factory -7/Lower Caves -7/Lower Caves -6/Factory -5/Factory -5/Upper Caves -5/Warlord -4/Proximity Caves -4/Factory -3/Research -2/Research (discovered 2 exits: *Acc x2) -1/Access History --------- Turn | Location | Event 37 | -11/Scrapyard | Discovered new exit (range 12) 56 | -11/Scrapyard | Entered Materials 175 | -10/Materials | Discovered new exit (range 14) 197 | -10/Materials | Entered another Materials area 197 | -9/Materials | Evolved 2 slots: Propulsion x1, Utility x1 296 | -9/Materials | Discovered new exit (range 8) 325 | -9/Materials | Build established: Mutant 390 | -9/Materials | Entered Mines 417 | -9/Mines | Discovered new exit (range 6) 429 | -9/Mines | Learned 2 Materials zone layouts 437 | -9/Mines | Entered Materials 437 | -8/Materials | Evolved 2 slots: Propulsion x1, Utility x1 702 | -8/Materials | Discovered new exit (range 10) 718 | -8/Materials | Entered Factory 718 | -7/Factory | Evolved 2 slots: Utility x2 834 | -7/Factory | Build established: Scavenger-Sprinter 860 | -7/Factory | Sucked down chute 860 | -7/Factory | Entered Waste 861 | -7/Waste | Met a frightened Derelict 868 | -7/Waste | Spotted C-40 Crusher 875 | -7/Waste | EMP discharged 875 | -7/Waste | System corruption reached 10% 875 | -7/Waste | Spotted C-40 Crusher 876 | -7/Waste | Spotted C-40 Crusher 876 | -7/Waste | Spotted C-40 Crusher 878 | -7/Waste | Spotted C-40 Crusher 880 | -7/Waste | Discovered new exit (range 16) 882 | -7/Waste | Crushed by Compactor (1 part destroyed, 2 dropped) 887 | -7/Waste | Entered Factory 1019 | -7/Factory | Discovered new exit (range 15) 1044 | -7/Factory | Identified exit to Lower Caves 1044 | -7/Factory | Entered Lower Caves 1140 | -7/Lower Caves | Encountered a Warlord checkpoint 1143 | -7/Lower Caves | Learned Factory trap positions 1212 | -7/Lower Caves | Discovered new exit (range 5) 1213 | -7/Lower Caves | Identified exit to Lower Caves 1213 | -7/Lower Caves | Entered another Lower Caves area 1219 | -7/Lower Caves | Discovered new exit (range 7) 1220 | -7/Lower Caves | Identified exit to Factory 1221 | -7/Lower Caves | Entered Factory 1221 | -6/Factory | Evolved 2 slots: Power x1, Propulsion x1 1222 | -6/Factory | Loaded intel: 122 trap records 1243 | -6/Factory | Build established: Scientist-Sprinter 1414 | -6/Factory | Fabricated Vibroblade (x1) 1552 | -6/Factory | Lost 5 parts (1p3n1u) 1725 | -6/Factory | Discovered new exit (range 11) 1728 | -6/Factory | Identified exit to Factory 1733 | -6/Factory | Entered another Factory area 1733 | -5/Factory | Evolved 2 slots: Utility x2 1789 | -5/Factory | Discovered new exit (range 18) 1803 | -5/Factory | Identified exit to Upper Caves 1820 | -5/Factory | Entered Upper Caves 1835 | -5/Upper Caves | Build established: Sprinter 1835 | -5/Upper Caves | Attracted the attention of an 0b10 outpost 1842 | -5/Upper Caves | A Derelict revealed a hidden shortcut to "reach the base" 1843 | -5/Upper Caves | Identified exit to Warlord 1843 | -5/Upper Caves | Learned Factory stockpile data 1844 | -5/Upper Caves | Entered Warlord 1887 | -5/Warlord | Visited the Vortex Lab 1909 | -5/Warlord | Warlord's base attacked by MAIN.C 1944 | -5/Warlord | Met Warlord 1991 | -5/Warlord | Opened side exit 2184 | -5/Warlord | Spotted B-86 Titan 2226 | -5/Warlord | Spotted Executioner 2259 | -5/Warlord | Warlord forces counterattacked 2278 | -5/Warlord | Spotted B-86 Titan 2278 | -5/Warlord | Spotted B-75 Beast 2310 | -5/Warlord | Discovered new exit (range 15) 2313 | -5/Warlord | Identified exit to Proximity Caves 2313 | -5/Warlord | Entered Proximity Caves 2370 | -4/Proximity Caves | Learned Research emergency access door positions 2455 | -4/Proximity Caves | Attracted the attention of an 0b10 checkpoint 2480 | -4/Proximity Caves | Discovered new exit (range 6) 2482 | -4/Proximity Caves | Identified exit to Factory 2482 | -4/Proximity Caves | Entered Factory 2482 | -4/Factory | Evolved 2 slots: Utility x2 2672 | -4/Factory | Lost 3 parts (1n2u) 2774 | -4/Factory | Lost 4 parts (1p2n1u) 2814 | -4/Factory | Discovered new exit (range 7) 2815 | -4/Factory | Identified exit to Research 2816 | -4/Factory | Entered Research 2816 | -3/Research | Evolved 2 slots: Utility x2 2834 | -3/Research | Lost 4 parts (2n2u) 2896 | -3/Research | Discovered new exit (range 20) 2903 | -3/Research | Identified exit to Research 2910 | -3/Research | Entered another Research area 2910 | -2/Research | Warlord forces began assault on 0b10 2910 | -2/Research | Evolved 2 slots: Propulsion x1, Utility x1 3020 | -2/Research | Research machine network offline 3085 | -2/Research | Lost 3 allies 3143 | -2/Research | Build established: Ninja 3284 | -2/Research | Borebot progress halted 3442 | -2/Research | Borebot progress halted 3444 | -2/Research | Warlord destroyed during the assault 3456 | -2/Research | P-80 Master assimilated allied SX-YWO(g) 3456 | -2/Research | Spotted SX-YWO(g) 3476 | -2/Research | Spotted Striker 3478 | -2/Research | Discovered new exit (range 7) 3478 | -2/Research | Discovered new exit (range 9) 3479 | -2/Research | Identified exit to Access 3480 | -2/Research | Entered Access 3480 | -1/Access | Evolved 2 slots: Utility x2 3497 | -1/Access | Lost 3 allies 3661 | -1/Access | Lost 3 allies 3768 | -1/Access | Build established: Hacker-Ninja 3960 | -1/Access | Lost 7 parts (1p2n4u) 3980 | -1/Access | Search patrols dispatched 4027 | -1/Access | Spotted B-99 Colossus 4029 | -1/Access | Released all parts (18) 4040 | -1/Access | Core integrity fell below 50% 4059 | -1/Access | Lost 3 parts (1p2n) 4074 | -1/Access | Core integrity fell below 20% 4082 | -1/Access | Destroyed by G-73 Enforcer with Heavy Laser Last Messages --------------- Slug penetrates Wall. Penetrated by Slug. Slug penetrates Wall. Acquired 5 matter. Slug penetrates Wall. Penetrated by Slug. Slammed into S-43 Plague. Slammed into P-80 Master. Slammed into G-73 Enforcer. Slammed into P-80 Master. Slammed into G-73 Enforcer. Destabilizing: System corrupted (+2). Slammed into G-73 Enforcer. Destabilizing: Core damaged (-16). Slammed into G-73 Enforcer. Destabilizing: Core damaged (-16). Slammed into G-73 Enforcer. Slug penetrates Wall. Slammed into G-73 Enforcer. Destabilizing: System corrupted (+1). Map ----- +----------------------------------------------------+ | # #?????# #????????????? | | #] #?????# #????????????? | | # #?????# #????????????? | | [! # #?????# #????????????? | | [! # ############## #????????????? | | [ # # # #????????????? | | # # # #????????????? | | # # + #????????????? | | # # "" # #????????????? | | # # "" # #????????????? | | ######### # """""" ?# #????????????? | | ????????# # """""" ?# #????????????? | | ????????########?? "" ??# #????????????? | | ????????????????? "" ??# =#????????##### | | ????????????????? ?? ???# |%#????????# | | ??????##########??? ???# !*#????????# | | ??????# #?? ????# ########## | | ??????# #?#######????# | | ??????# " #????????????################## | | ??????# """ #??????????????????????""""" # | | ??????# """ #??????????????????????"""" # | | ??????# " ############???????????? # | | ??????# %% %+%%%%%%%%gg#???????????? # | | ??????# ! ##########g#????????????? # | | ??????# #????????#g#????????????? # | | ??????##########????????#@#?????????????? ?# | | ??????????????????????? ;g#?????????????? ?# | | ????????????????????? BB#g################+### | | ??????????????????? BB# % ^ | | ?????????????????""" ?# | | ????????????????"""" ??# | | ?????????????????""""???+ " | | ?????????????????""" ???# " | | ?????????????????" ????# """"" | | ?????????????????? ?????# """"" | | ????????????????? ??????#####"" "" / | | ????????????????????????????# "" !* | | ????????????????????????????# =! | | ????????????????????????????### !!! | | ??????????????????????????????# !!! | | ??????????????????????????????# H "" !! | | ??????????????????????????????# "" | | ?????????????????????????????? """""" | | ??????????????????????????????? ?""""" | | ????????????????????????????????????"" | | ??????????????????????????????????? "" | | ?????????????????????????????????? | | ????????????????????????????????? | | ???????????????????????????????? | | ???????????????????????????????? ########### | +----------------------------------------------------+ Best States ------------- Heat Dissipation 89 Energy Generation 33 Energy Capacity 960 Matter Stores 300 Matter Capacity 300 Sight Range 22 Robot Scan Range 16 Terrain Scan Density 10 ECM Strength 1 Jamming Range 14 Additional Mass Support 9 Armor Coverage 150 Utility Shielding 33 Evasion (%) 75 Melee Accuracy 22 Offensive Hacking 28 Defensive Hacking 44 Item Schematics ----------------- None Robot Schematics ------------------ None Fabricated ------------ Vibroblade | x1 | -6/Factory | Preloaded Repaired ---------- Nothing Studied --------- Katana | -7/Factory | Hacked Power Maul | -7/Factory | Hacked Xenon Bombardment Thruster | -7/Factory | Hacked VTOL Module | -7/Factory | Hacked Field Propulsion Array | -1/Access | Hacked Nuclear Pulse Thruster | -1/Access | Hacked Lgt. Nuclear Core | -1/Access | Hacked Alien Tech Used ----------------- None Achievements -------------- A Powerful Ally? Charge!!! Challenges ------------ None Game ------ Seed AlertBehemothCore Manual? 0 Play Time 01:29:53 Cumulative 36.3 hours Start 2025.12.23 @ 15:45:02 End 2025.12.23 @ 17:39:25 Sessions 1 Manual Loads 0 Difficulty Rogue Special Mode None Game No. 63 Rogue 62 Adventurer 1 Explorer 0 Win Type - Total 0 Types 0/0/0/0/0/0/0/0/0/0 Lore% 11 Gallery% 31 Achievement% 21 Wizard Run 0 Options --------- Layout 1 ASCII 0 Keyboard 0 Movement Arrows Keybinds 0 Fullscreen 1 Font 24/Smallcaps Map View 50x35 Zoom Use 0% Tactical HUD 0 Map Filters NONE Filters NONE Steam 1 RUN: 746ad96d-3ebe-484a-bb0f-d3d77248ddf8